bitfinex-derivatives/quotes_ETHF0:USTF0_20260305
["timestamp","ask_amount","ask_price","bid_price","bid_amount"]
[1772725732572,0.64366277,2085.3,2084.3,0.62644128]
[1772725735874,0.64366277,2085.1,2084.3,0.62644128]
[1772725737269,0.64366277,2085.3,2084.3,0.62644128]
[1772725739074,0.64366277,2085.6,2084.3,0.62644128]
[1772725739779,0.64366277,2085.4,2084.4,6.853]
[1772725739980,0.64366277,2085.4,2084.5,0.62644128]
[1772725741375,0.64366277,2085.6,2084.5,0.62644128]
[1772725741571,0.64366277,2085.5,2084.5,0.62644128]
[1772725741781,0.64366277,2085.3,2084.3,0.62644128]
[1772725742378,0.64366277,2084.7,2084.0,0.00515451]
[1772725742680,0.64366277,2084.3,2083.4,0.62644128]
[1772725742878,0.64366277,2084.1,2083.2,0.62644128]
[1772725743476,0.64366277,2084.5,2083.2,0.62644128]
[1772725743677,0.64366277,2084.3,2083.2,0.6320466]
[1772725746588,0.64366277,2084.0,2083.2,0.00560532]
[1772725747179,0.64366277,2083.8,2083.2,0.00560532]
[1772725747583,0.64366277,2083.6,2082.7,6.846]
[1772725747784,0.64366277,2083.6,2082.7,7.47244128]
[1772725748485,0.64366277,2083.6,2082.7,7.47775549]
[1772725749080,0.64366277,2083.6,2082.7,0.00531421]
[1772725749283,0.64366277,2083.4,2082.7,0.00531421]
[1772725749478,0.64366277,2083.4,2081.5,40.8]
[1772725749479,0.64366277,2083.0,2081.8,0.62644128]
[1772725749680,0.64366277,2082.6,2080.9,0.62644128]
[1772725749884,0.64366277,2082.4,2081.1,0.62644128]
[1772725750479,0.64836354,2082.4,2081.1,0.63088677]
[1772725751182,0.64366277,2082.0,2081.1,0.63088677]
[1772725751782,0.64366277,2082.0,2081.1,0.00444549]
[1772725752789,0.64366277,2082.0,2081.1,0.63088677]
[1772725753678,0.64366277,2082.0,2081.1,0.00444549]
[1772725754085,0.64366277,2082.0,2081.1,0.63088677]
[1772725754481,0.64366277,2082.0,2081.1,0.00444549]
[1772725754978,0.64366277,2082.0,2081.1,0.63088677]
[1772725755191,0.64366277,2082.0,2081.1,0.00444549]
[1772725755486,0.64366277,2082.0,2081.1,0.63088677]
[1772725756884,0.64366277,2082.3,2081.1,0.63088677]
[1772725757486,0.64366277,2082.3,2081.2,0.62644128]
[1772725757686,0.00470077,2082.4,2081.2,0.62644128]
[1772725757889,0.00470077,2082.4,2081.4,0.62644128]
[1772725758186,0.64366277,2083.2,2081.6,0.62644128]
[1772725758492,0.64366277,2083.2,2081.8,0.62644128]
[1772725758887,0.64366277,2083.2,2082.2,0.59352787]
[1772725759386,0.64765252,2083.2,2082.2,0.59352787]
[1772725759592,0.64765252,2083.2,2082.1,0.2401]
[1772725759593,0.64765252,2083.2,2082.3,7.43252787]
[1772725759891,0.64765252,2083.2,2082.4,0.59352787]
[1772725760093,0.64765252,2083.2,2082.0,7.43152787]
[1772725760288,0.64765252,2083.2,2082.0,0.59352787]
[1772725761887,0.64765252,2083.2,2082.1,0.59352787]
[1772725762096,0.55974953,2083.6,2082.5,0.59352787]
[1772725762391,0.55974953,2083.6,2082.4,0.59352787]
[1772725762587,0.55974953,2083.6,2082.5,0.59352787]
[1772725763093,0.00463039,2083.6,2082.5,0.59352787]
[1772725763993,0.00463039,2083.6,2082.7,0.59352787]
[1772725764184,0.00463039,2083.6,2082.7,0.59880134]
[1772725764384,0.55974953,2083.9,2082.9,0.59352787]
[1772725764685,0.55974953,2083.9,2083.0,0.59352787]
[1772725765491,0.56495796,2083.9,2083.0,0.59352787]
[1772725766592,0.56495796,2083.9,2082.7,0.57351452]
[1772725766593,0.59442026,2083.7,2082.7,0.57351452]
[1772725766990,0.59962869,2083.9,2082.7,0.57351452]
[1772725768092,0.00520843,2083.9,2082.9,0.56824105]
[1772725768593,0.59962869,2083.9,2082.9,0.56824105]
[1772725768792,0.59962869,2083.9,2083.0,0.56824105]
[1772725769495,0.59962869,2083.9,2082.2,40.8]
[1772725769496,0.59442026,2081.6,2079.8,0.56824105]
[1772725769691,5.90781,2081.7,2079.8,0.56824105]
[1772725769692,0.59442026,2081.0,2079.8,0.56824105]
[1772725769894,0.59442026,2081.0,2079.5,0.56824105]
[1772725770497,0.59845567,2081.0,2079.5,0.57231333]
[1772725774800,0.59845567,2081.0,2079.8,0.56824105]
[1772725774801,0.00403541,2081.0,2079.8,0.56824105]
[1772725775696,0.59442026,2081.7,2079.8,0.56824105]
[1772725776098,0.59442026,2081.7,2080.0,0.56824105]
[1772725776296,0.59442026,2081.7,2080.2,0.56824105]
[1772725776700,0.59798678,2081.7,2080.2,0.56824105]
[1772725777701,0.59798678,2081.7,2080.4,0.56824105]
[1772725778902,0.59442026,2082.3,2080.6,0.56824105]
[1772725779103,0.59442026,2082.9,2081.0,0.56824105]
[1772725779296,0.59442026,2082.9,2081.2,0.56824105]
[1772725779502,0.59442026,2082.9,2081.4,0.56824105]
[1772725779897,0.59997678,2082.9,2081.4,0.5729306]
[1772725782703,0.59997678,2082.9,2081.6,0.56824105]
[1772725783502,0.59442026,2082.7,2081.6,0.56824105]
[1772725788105,0.59442026,2082.7,2081.7,6.97224105]
[1772725788609,0.59997678,2082.9,2081.8,0.56824105]
[1772725789004,0.57819149,2082.9,2082.0,0.59537645]
[1772725789203,0.24002,2082.8,2081.5,0.59537645]
[1772725789403,0.57263497,2082.7,2081.9,0.59537645]
[1772725790207,0.57263497,2082.3,2081.4,0.00468955]
[1772725790407,0.57263497,2081.9,2080.8,0.59537645]
[1772725791205,0.57263497,2081.7,2080.5,6.97837645]
[1772725791399,0.57263497,2081.7,2080.6,0.59537645]
[1772725794011,0.57263497,2081.3,2080.5,0.00403043]
[1772725794206,0.57817807,2081.3,2080.5,0.00403043]
[1772725794911,0.57263497,2081.1,2080.5,0.00403043]
[1772725798206,0.57817807,2081.3,2080.5,0.59940688]
[1772725798805,0.57817807,2081.3,2080.5,0.00403043]
[1772725799708,0.57817807,2081.3,2080.5,0.59940688]
[1772725800907,0.57263497,2081.7,2080.7,0.59537645]
[1772725801302,0.57263497,2082.1,2080.9,0.59537645]
[1772725801509,0.57263497,2082.1,2081.0,6.91937645]
[1772725801705,0.57263497,2081.9,2081.0,0.59537645]
[1772725801901,0.57263497,2081.9,2080.5,0.00403043]
[1772725801902,0.57263497,2081.7,2080.7,0.59537645]
[1772725802101,0.57263497,2081.8,2080.7,0.59537645]
[1772725802713,0.57263497,2081.6,2080.5,0.59940688]
[1772725804010,0.00542886,2081.9,2080.9,0.59537645]
[1772725804210,0.00542886,2081.9,2081.1,0.59537645]
[1772725805308,0.00542886,2081.9,2081.3,0.59537645]
[1772725805506,0.57263497,2082.3,2081.3,0.59537645]
[1772725805709,0.57263497,2082.6,2081.5,0.59537645]
[1772725806406,0.57641102,2082.6,2081.5,0.59537645]
[1772725808109,0.00377605,2082.6,2081.5,0.59537645]
[1772725808312,0.00377605,2082.6,2081.7,0.59537645]
[1772725808518,0.00377605,2082.6,2081.9,0.59537645]
[1772725808719,0.57641102,2082.6,2081.9,0.59537645]
[1772725808917,0.57641102,2082.6,2081.8,6.308]
[1772725810223,0.57263497,2082.4,2081.4,6.90037645]
[1772725810719,0.00377605,2082.6,2081.4,6.305]
[1772725810720,0.57263497,2082.2,2081.4,6.305]
[1772725810915,0.57263497,2081.8,2080.9,0.59537645]
[1772725811714,5.90591,2082.4,2080.9,0.59537645]
[1772725811715,0.57263497,2082.3,2080.9,0.59537645]
[1772725812111,6.09407233,2082.2,2080.9,0.59537645]
[1772725812312,0.57263497,2082.1,2080.9,0.59537645]
[1772725812917,0.57263497,2082.5,2081.5,0.59537645]
[1772725813123,0.57263497,2082.5,2081.7,0.59537645]
[1772725813823,0.57263497,2082.4,2081.1,0.59537645]
[1772725814026,0.57263497,2082.4,2081.3,0.59537645]
[1772725815722,0.57263497,2082.2,2081.1,6.89537645]
[1772725816128,0.57263497,2082.2,2081.2,0.59537645]
[1772725816631,0.57263497,2081.8,2081.0,0.59537645]
[1772725816925,0.57263497,2081.8,2081.0,6.89437645]
[1772725817226,0.57263497,2081.8,2080.9,0.59537645]
[1772725818532,0.57263497,2081.8,2080.8,6.299]
[1772725818730,0.57263497,2081.8,2080.8,6.89437645]
[1772725818931,0.57263497,2081.8,2080.9,0.57617704]
[1772725820428,0.58208212,2082.2,2080.9,0.57617704]
[1772725820630,6.10860096,2082.1,2080.9,0.57617704]
[1772725820929,6.10860096,2082.1,2080.8,6.53825]
[1772725820930,0.00377605,2082.6,2081.8,0.57617704]
[1772725821129,0.58208212,2082.9,2082.0,0.57617704]
[1772725821323,6.10831107,2082.8,2081.7,0.57617704]
[1772725821529,0.58208212,2082.7,2081.7,6.87317704]
[1772725822131,0.58619423,2082.7,2081.7,6.87688413]
[1772725822533,0.58208212,2082.5,2081.7,6.30070709]
[1772725822833,0.58208212,2082.5,2081.8,0.57617704]
[1772725823029,0.58619423,2082.7,2081.8,0.57617704]
[1772725826237,0.00411211,2082.7,2081.8,0.57617704]
[1772725826627,0.58619423,2082.7,2081.8,0.57617704]
[1772725827127,0.00411211,2082.7,2081.9,0.24012]
[1772725827333,0.00411211,2082.7,2082.0,0.56253792]
[1772725828827,0.55025192,2083.1,2082.2,0.56253792]
[1772725829228,0.55025192,2083.4,2082.2,0.56253792]
[1772725829833,0.55642354,2083.4,2082.2,0.56253792]
[1772725830035,0.55642354,2083.4,2082.4,0.56253792]
[1772725830235,0.00617162,2083.4,2082.4,0.56253792]
[1772725830434,0.00617162,2083.4,2082.5,0.24005]
[1772725830636,0.00617162,2083.4,2082.7,0.56253792]
[1772725830940,1.86410702,2084.0,2082.9,0.56253792]
[1772725831633,0.55025192,2084.0,2082.9,0.56253792]
[1772725831836,0.55418706,2084.0,2082.9,0.56253792]
[1772725833537,0.00393514,2084.0,2083.0,0.56253792]
[1772725835143,0.55418706,2084.0,2083.2,0.56253792]
[1772725835444,0.55418706,2084.0,2083.3,6.292]
[1772725835946,0.55418706,2084.0,2083.3,6.85453792]
[1772725836342,0.00393514,2084.0,2083.4,0.56253792]
[1772725836643,0.55025192,2084.4,2083.4,0.56253792]
[1772725837549,0.55025192,2084.2,2083.2,6.29441649]
[1772725839047,0.55025192,2084.2,2083.3,0.56253792]
[1772725847348,0.55025192,2084.0,2083.2,0.00341649]
[1772725847650,0.00473993,2084.4,2083.2,0.00341649]
[1772725847651,0.55025192,2083.8,2083.2,0.00341649]
[1772725847850,0.55025192,2083.8,2083.2,0.56595441]
[1772725848152,0.55025192,2084.3,2083.2,0.56595441]
[1772725848550,0.55025192,2084.1,2083.2,0.56595441]
[1772725850545,0.54801553,2084.3,2083.2,0.56595441]
[1772725850745,0.54297684,2081.4,2081.1,0.4797]
[1772725850951,0.4797,2081.4,2079.1,3.04336666]
[1772725851146,0.54801553,2081.0,2079.2,0.54297684]
[1772725851453,0.54801553,2081.0,2079.4,0.54297684]
[1772725851953,0.54801553,2081.0,2079.4,0.54784823]
[1772725851954,0.55383732,2081.0,2079.4,0.54784823]
[1772725857863,0.55383732,2081.0,2079.7,0.54297684]
[1772725858065,0.55383732,2081.0,2079.9,0.54297684]
[1772725858858,0.00582179,2081.0,2079.9,0.54297684]
[1772725859059,0.00582179,2081.0,2080.0,0.54297684]
[1772725860566,0.54801553,2081.6,2080.3,0.54297684]
[1772725860767,0.54801553,2081.6,2080.5,0.54297684]
[1772725861463,0.00622523,2081.6,2080.5,0.54297684]
[1772725861769,0.00622523,2081.6,2080.4,6.294]
[1772725861770,0.54801553,2082.7,2080.9,0.54297684]
[1772725861960,0.54801553,2082.7,2081.1,0.54297684]
[1772725862671,0.54801553,2082.7,2081.1,0.54738641]
[1772725862867,0.5514528,2082.7,2081.1,0.54738641]
[1772725863068,0.5514528,2082.7,2081.2,0.54297684]
[1772725865370,0.00343727,2082.7,2081.8,0.54297684]
[1772725865569,0.00343727,2082.7,2082.0,0.54297684]
[1772725867867,0.54801553,2083.5,2082.1,0.54297684]
[1772725868167,0.54801553,2083.3,2082.1,0.54297684]
[1772725868768,0.5525818,2083.3,2082.1,0.54297684]
[1772725869268,0.00456627,2083.3,2082.3,0.54297684]
[1772725869472,0.00456627,2083.3,2082.5,0.54297684]
[1772725872876,0.54801553,2083.8,2082.5,0.54297684]
[1772725873271,0.54801553,2083.8,2082.7,0.54297684]
[1772725873472,0.54801553,2084.5,2082.7,0.54297684]
[1772725873671,0.55357664,2084.5,2082.7,0.54679669]
[1772725874072,0.55357664,2084.5,2082.9,0.54297684]
[1772725874273,0.55357664,2084.5,2083.1,0.54297684]
[1772725876878,0.54801553,2084.3,2083.1,0.54297684]
[1772725877480,0.54801553,2084.1,2083.2,6.291]
[1772725877687,0.54801553,2084.1,2083.2,6.83397684]
[1772725877881,0.54801553,2084.1,2083.3,0.54297684]
[1772725878485,0.54801553,2084.4,2083.3,0.54297684]
[1772725880377,0.23985,2084.3,2082.9,0.58446012]
[1772725880573,0.38624299,2084.5,2083.1,0.23999]
[1772725880774,0.00556111,2084.5,2083.4,0.58446012]
[1772725880980,0.38068188,2085.1,2083.8,0.58446012]
[1772725881175,0.38068188,2085.6,2084.0,0.58446012]
[1772725881375,0.38068188,2085.6,2084.2,0.58446012]
[1772725882076,0.38511331,2085.6,2084.2,0.58940534]
[1772725885779,0.39565922,2085.4,2084.2,0.58940534]
[1772725885983,0.23971,2085.5,2084.2,0.00494522]
[1772725885984,0.39565922,2085.0,2084.2,0.00494522]
[1772725887185,0.36473661,2084.8,2083.5,0.5800013]
[1772725887983,0.2398,2084.7,2083.5,0.5800013]
[1772725888176,0.36473661,2084.6,2083.5,0.58348326]
[1772725890584,0.3593167,2084.8,2083.5,0.58348326]
[1772725891484,0.35468355,2085.1,2083.5,0.58348326]
[1772725891782,0.35468355,2084.9,2083.5,0.58348326]
[1772725892186,0.35468355,2085.5,2083.9,0.5800013]
[1772725892482,0.35468355,2085.5,2084.1,0.5800013]
[1772725892685,0.35468355,2085.3,2084.1,0.5800013]
[1772725894887,0.00443143,2085.6,2084.3,0.5800013]
[1772725896187,0.00443143,2085.6,2084.5,0.5800013]
[1772725896188,0.34805468,2085.5,2084.5,0.5800013]
[1772725897684,0.34816424,2085.3,2084.5,0.5800013]
[1772725898083,0.34816424,2085.1,2084.0,0.5800013]
[1772725898285,6.89992745,2085.0,2084.0,0.5800013]
[1772725898485,0.34816424,2085.0,2084.0,0.5800013]
[1772725898885,0.34816424,2085.3,2084.0,0.5800013]
[1772725899086,6.9041191,2085.2,2084.0,0.5800013]
[1772725899286,6.55595486,2085.1,2084.0,0.5800013]
[1772725899484,0.34816424,2085.2,2084.0,0.5800013]
[1772725899684,6.56050615,2085.1,2084.0,0.5800013]
[1772725900781,0.34873809,2085.5,2084.2,0.5800013]
[1772725901089,6.90734356,2085.4,2084.2,0.5800013]
[1772725901285,6.90819426,2085.3,2084.2,0.5800013]
[1772725901490,6.90819426,2085.2,2084.2,0.5800013]
[1772725901789,6.91112965,2085.1,2084.2,0.5800013]
[1772725901990,0.34958879,2085.1,2084.2,0.5800013]
[1772725902191,6.56500961,2085.0,2084.2,0.5800013]
[1772725902490,0.34958879,2085.4,2084.2,0.5800013]
[1772725902790,6.56284754,2085.3,2084.2,0.5800013]
[1772725903089,0.34958879,2085.5,2084.2,0.5800013]
[1772725903284,6.56737273,2085.4,2084.3,0.23985]
[1772725903491,0.00443143,2085.6,2084.4,0.5800013]
[1772725903788,6.51608984,2085.6,2084.4,0.5800013]
[1772725903991,0.34313284,2085.6,2084.4,0.5800013]
[1772725904190,6.85070563,2085.5,2084.4,0.5800013]
[1772725904489,0.33870141,2085.5,2084.4,0.5800013]
[1772725905291,0.00443143,2085.6,2084.4,0.5800013]
[1772725905494,6.51629727,2085.6,2084.4,0.5800013]
[1772725905688,6.51186584,2085.5,2084.4,0.5800013]
[1772725905893,0.00443143,2085.6,2084.6,0.5800013]
[1772725906093,0.00443143,2085.6,2084.8,0.5800013]
[1772725906690,6.5192964,2085.6,2084.8,0.5800013]
[1772725907392,6.90870416,2085.6,2084.8,0.5800013]
[1772725907590,6.51486497,2085.5,2084.8,0.5800013]
[1772725909591,6.51486497,2085.5,2084.6,0.59166347]
[1772725909893,0.38876152,2085.3,2084.6,0.59166347]
[1772725910594,0.38876152,2085.1,2084.5,0.59166347]
[1772725910796,0.39319295,2085.6,2084.5,0.59166347]
[1772725911095,6.51925565,2085.5,2084.5,0.59166347]
[1772725911395,6.91546016,2085.5,2084.5,0.59166347]
[1772725911590,6.51925565,2085.4,2084.5,0.59166347]
[1772725911896,0.00443143,2085.6,2084.5,0.59166347]
[1772725912293,6.5235711,2085.6,2084.5,0.59166347]
[1772725912495,6.51913967,2085.5,2084.5,0.59166347]
[1772725912794,0.00443143,2085.6,2084.5,0.59166347]
[1772725912996,6.52445437,2085.6,2084.5,0.59166347]
[1772725913293,0.40036629,2085.5,2084.5,0.59166347]
[1772725914696,0.40036629,2085.5,2084.6,0.59166347]
[1772725914889,0.42167552,2085.6,2084.6,0.59166347]
[1772725915095,0.41724409,2085.4,2084.6,0.59166347]
[1772725915697,0.00443143,2085.6,2084.6,0.59166347]
[1772725915698,0.43537264,2085.6,2084.6,0.59166347]
[1772725915897,6.52109535,2085.5,2084.6,0.59166347]
[1772725916097,6.52109535,2085.5,2084.7,0.59166347]
[1772725916296,0.00443143,2085.6,2084.9,0.59166347]
[1772725916496,0.43539852,2086.4,2085.2,0.23974]
[1772725916695,6.41068437,2086.3,2085.4,0.59166347]
[1772725917294,0.43539852,2086.4,2085.4,0.59166347]
[1772725917600,0.43898767,2086.4,2085.4,0.59617901]
[1772725917803,0.46524464,2086.4,2085.4,0.59617901]
[1772725918098,0.00358915,2086.4,2085.6,0.59166347]
[1772725918400,3.86886235,2086.9,2085.6,0.59166347]
[1772725918401,0.46165549,2086.9,2085.6,0.59166347]
[1772725919500,0.46557542,2086.9,2085.6,0.59166347]
[1772725920301,0.48684161,2086.7,2085.6,0.59166347]
[1772725920503,0.48684161,2086.5,2085.6,0.59166347]
[1772725920703,0.50088429,2086.3,2085.4,0.59617901]
[1772725921004,0.50088429,2086.1,2085.4,0.00451554]
[1772725921399,0.50088429,2086.1,2085.4,0.59617901]
[1772725921594,0.51196685,2086.3,2085.4,0.59617901]
[1772725921795,0.52584246,2086.1,2085.4,0.00451554]
[1772725922304,0.52591567,2085.9,2085.0,0.59166347]
[1772725922706,0.53962906,2086.1,2085.0,0.59166347]
[1772725923204,0.53962906,2086.1,2085.0,0.59610417]
[1772725923405,0.52071097,2085.9,2085.0,0.59610417]
[1772725923906,0.534285,2086.3,2085.0,0.59610417]
[1772725924107,0.534285,2086.1,2085.0,0.59610417]
[1772725924303,0.53416319,2085.9,2085.0,0.59610417]
[1772725924607,0.54758159,2086.3,2085.0,0.59610417]
[1772725924796,0.54758159,2086.1,2085.0,0.59610417]
[1772725925999,5.86288984,2086.7,2085.2,0.59166347]
[1772725926000,4.42775225,2086.7,2085.2,0.59166347]
[1772725926303,6.9382999,2086.6,2085.4,0.59166347]
[1772725926504,0.55875324,2086.8,2085.6,0.59166347]
[1772725926705,6.94108002,2086.7,2085.6,0.59166347]
[1772725926905,0.56204053,2086.7,2085.6,0.59166347]
[1772725927599,0.56204053,2086.5,2085.6,0.59166347]
[1772725927803,0.56204053,2086.7,2085.6,0.59166347]
[1772725932505,0.00391993,2086.9,2085.8,0.59166347]
[1772725933115,0.56596046,2086.9,2085.8,0.59166347]
[1772725934314,0.56204053,2086.5,2085.6,0.59166347]
[1772725934510,0.56204053,2086.3,2085.6,0.59166347]
[1772725934808,0.56204053,2086.3,2085.5,6.283]
[1772725935013,0.56204053,2086.1,2085.5,4.60740601]
[1772725935511,0.00141471,2086.5,2085.5,5.34943846]
[1772725935709,0.0137323,2086.3,2085.5,5.34943846]
[1772725936016,0.0137323,2086.5,2085.6,0.74203245]
[1772725937410,6.32045358,2086.5,2085.6,0.74203245]
[1772725937611,0.25608859,2086.7,2085.6,0.74203245]
[1772725937812,0.02854654,2086.6,2085.6,0.70937591]
[1772725938107,0.06120308,2086.4,2085.6,0.70937591]
[1772725938713,6.39734271,2086.6,2085.6,0.70937591]
[1772725938913,6.32432688,2086.5,2085.6,0.70937591]
[1772725939110,0.07301583,2086.6,2085.6,0.70937591]
[1772725939410,0.00391993,2086.9,2086.0,0.72831094]
[1772725939616,0.00391993,2086.9,2086.2,0.72831094]
[1772725941212,0.08068607,2087.1,2086.2,0.72831094]
[1772725941719,0.0619341,2087.3,2086.2,0.72831094]
[1772725942015,0.23953,2087.1,2086.2,0.72831094]
[1772725942215,0.0619341,2087.0,2086.2,0.72831094]
[1772725942417,0.23957,2086.7,2086.0,0.72920178]
[1772725942716,0.06212281,2086.6,2086.0,0.72920178]
[1772725943109,6.32553848,2086.9,2086.0,0.72920178]
[1772725943110,0.04358622,2086.8,2086.0,0.72920178]
[1772725943315,0.04227918,2086.7,2086.0,0.72920178]
[1772725943717,6.34811737,2087.0,2086.0,0.72920178]
[1772725944021,6.32210573,2086.9,2086.0,0.72920178]
[1772725944321,6.35068691,2086.8,2086.0,0.72920178]
[1772725944522,0.02619152,2086.8,2086.0,0.72920178]
[1772725945110,0.23957,2086.7,2086.0,0.72920178]
[1772725945316,0.01011082,2086.6,2086.0,0.72920178]
[1772725945712,0.52947864,2086.4,2085.8,6.281]
[1772725945914,0.52947864,2086.4,2085.9,0.70911745]
[1772725946118,0.52947864,2086.6,2085.9,0.70911745]
[1772725946315,6.32143225,2086.5,2085.9,0.70911745]
[1772725946720,6.83553937,2086.5,2085.9,0.70911745]
[1772725946918,6.83553937,2086.5,2085.8,6.9464929]
[1772725946919,0.51410712,2086.5,2085.8,6.9464929]
[1772725947118,0.51410712,2086.5,2085.9,0.6654929]
[1772725948525,0.47786251,2086.3,2085.4,0.6654929]
[1772725948720,0.46247128,2086.1,2085.4,0.6654929]
[1772725949122,0.46247128,2085.9,2085.0,0.6699336]
[1772725949320,0.46247128,2085.9,2084.6,0.6654929]
[1772725949321,0.45024763,2085.5,2084.6,0.6654929]
[1772725949515,6.76827027,2085.4,2084.6,0.6654929]
[1772725949720,0.45024763,2085.4,2084.6,0.6654929]
[1772725949922,0.43503318,2085.2,2084.3,6.281]
[1772725950116,0.23973,2085.3,2084.4,0.6654929]
[1772725950322,0.00422718,2085.3,2084.4,0.67058538]
[1772725951321,0.42661459,2085.9,2084.5,0.6654929]
[1772725951524,0.42661459,2085.9,2084.7,0.6654929]
[1772725951926,0.36100876,2085.7,2084.7,0.6654929]
[1772725952318,0.36647559,2085.7,2084.7,0.6654929]
[1772725954929,0.00546683,2085.7,2084.7,0.6654929]
[1772725956324,0.28354195,2085.7,2084.7,0.6654929]
[1772725956526,0.00546683,2085.7,2084.7,0.6654929]
[1772725959434,0.00546683,2085.7,2084.9,0.6654929]
[1772725960331,0.28177672,2085.7,2084.7,0.6654929]
[1772725960535,0.27630989,2085.5,2084.7,0.6654929]
[1772725961332,0.00546683,2085.7,2084.7,0.6654929]
[1772725961732,0.00546683,2085.7,2084.7,0.9052929]
[1772725961938,0.00546683,2085.7,2084.8,0.6654929]
[1772725962237,0.27736176,2086.2,2085.0,0.6654929]
[1772725962942,0.28282859,2086.1,2085.0,0.6654929]
[1772725963232,0.28282859,2086.0,2085.0,0.6654929]
[1772725963636,6.58412825,2086.1,2085.0,0.6654929]
[1772725964236,0.27566999,2086.0,2085.0,0.6654929]
[1772725967033,0.00599114,2086.1,2085.2,0.6654929]
[1772725968043,0.29725073,2086.1,2085.2,0.6654929]
[1772725968342,0.29125959,2085.9,2085.2,0.6654929]
[1772725968744,0.23965,2086.0,2085.2,0.6654929]
[1772725968941,0.53080819,2086.0,2085.2,0.6654929]
[1772725969948,0.29115819,2086.0,2085.2,0.6654929]
[1772725970842,0.00599114,2086.1,2085.2,0.6654929]
[1772725971442,0.29767593,2086.1,2085.2,0.6654929]
[1772725971745,0.00599114,2086.1,2085.2,0.6654929]
[1772725972458,0.29168479,2085.9,2085.2,0.6654929]
[1772725972740,0.29767593,2086.1,2085.2,0.6654929]
[1772725972940,0.00599114,2086.1,2085.2,0.6654929]
[1772725974546,0.31344615,2086.1,2085.2,0.6654929]
[1772725975239,0.00599114,2086.1,2085.2,0.9052329]
[1772725975444,0.00599114,2086.1,2085.3,0.54627121]
[1772725977241,6.32200926,2086.1,2085.3,0.54627121]
[1772725977446,0.00599114,2086.1,2085.3,0.54627121]
[1772725978148,0.31224502,2086.1,2085.3,0.54627121]
[1772725978545,0.30625388,2086.0,2085.3,0.54627121]
[1772725978748,0.30625388,2085.9,2085.3,0.54627121]
[1772725980949,0.30629804,2086.0,2085.3,0.54627121]
[1772725981653,6.32155013,2086.1,2085.3,0.54627121]
[1772725981842,0.53599355,2086.0,2085.3,0.54627121]
[1772725982047,6.31555899,2085.9,2085.3,0.54627121]
[1772725982242,6.32638749,2085.8,2085.3,0.54627121]
[1772725982448,0.30621966,2085.8,2084.9,0.54627121]
[1772725982951,0.58277317,2085.7,2084.9,0.54627121]
[1772725983348,2.29940938,2085.6,2084.9,0.54627121]
[1772725983546,0.60102058,2085.8,2084.9,0.54627121]
[1772725983748,0.60102058,2085.6,2084.9,0.54627121]
[1772725984150,0.60102058,2085.6,2084.6,6.282]
[1772725985349,0.60102058,2085.6,2084.7,0.0087129]
[1772725989558,0.59655999,2085.4,2084.6,6.282]
[1772725989756,0.59655999,2085.2,2084.6,6.282]
[1772725991153,0.59655999,2085.2,2084.4,0.00509248]
[1772725991358,0.59783247,2085.0,2084.4,0.00509248]
[1772725993558,0.59783247,2085.0,2083.9,0.00939238]
[1772725993559,0.59633839,2084.9,2083.9,0.00939238]
[1772725994662,0.59633839,2084.9,2083.9,0.00457758]
[1772725995068,0.59633839,2084.9,2083.9,0.01396996]
[1772725996662,0.59699222,2084.7,2083.9,0.00457758]
[1772725997059,0.59699222,2084.7,2083.9,0.0126623]
[1772725997264,0.58277317,2085.2,2084.1,0.00808472]
[1772725997460,0.58277317,2085.0,2084.1,0.00808472]
[1772725998562,0.58277317,2085.3,2084.1,0.00808472]
[1772725998958,0.57466922,2085.1,2084.1,0.00808472]
[1772725999853,0.57466922,2085.5,2084.5,0.54830587]
[1772726000060,0.57466922,2085.5,2084.7,0.54830587]
[1772726000564,0.57466922,2085.5,2084.6,6.284]
[1772726000565,0.57466922,2085.8,2084.9,0.54830587]
[1772726000765,0.57466922,2086.0,2084.9,0.54830587]
[1772726000960,0.57466922,2086.0,2085.0,0.54830587]
[1772726001162,0.57466922,2086.0,2084.7,0.54830587]
[1772726002867,0.57466922,2086.0,2084.8,0.54830587]
[1772726004569,0.57466922,2086.0,2085.0,0.54830587]
[1772726004762,0.00599114,2086.1,2085.2,0.54830587]
[1772726004964,0.00599114,2086.1,2085.4,0.54830587]
[1772726005169,0.57466922,2086.7,2085.4,0.55322598]
[1772726005460,6.73014872,2086.6,2085.4,0.55322598]
[1772726005657,0.57466922,2086.6,2085.4,0.55322598]
[1772726005862,0.57466922,2086.6,2085.6,0.54830587]
[1772726006063,0.57466922,2086.8,2085.6,0.54830587]
[1772726006306,0.58040549,2086.8,2085.6,0.54830587]
[1772726006570,0.00573627,2086.8,2085.8,0.54830587]
[1772726006768,0.00573627,2086.8,2086.0,0.54830587]
[1772726006965,0.55985406,2086.8,2086.0,0.54830587]
[1772726007569,0.55985406,2086.8,2085.9,6.284]
[1772726007768,0.55985406,2086.8,2085.9,6.0876039]
[1772726008366,0.55411779,2086.6,2085.4,6.84635275]
[1772726008572,0.55411779,2086.4,2085.5,0.55843264]
[1772726009471,0.55411779,2086.7,2085.5,0.55843264]
[1772726011375,0.55411779,2086.7,2085.6,0.55843264]
[1772726011774,0.55411779,2086.7,2085.8,0.55843264]
[1772726013473,0.55411779,2086.7,2085.7,6.84043264]
[1772726014476,0.55411779,2086.7,2085.8,0.55843264]
[1772726015774,0.55411779,2086.7,2085.7,5.14210799]
[1772726015971,0.00573627,2086.8,2085.7,0.55843264]
[1772726016170,0.00573627,2086.8,2085.4,5.90212011]
[1772726016171,0.55411779,2087.5,2086.2,0.55843264]
[1772726016370,0.55411779,2087.5,2086.4,0.55843264]
[1772726016672,0.55411779,2088.0,2086.4,0.55843264]
[1772726016878,0.55985406,2088.0,2086.4,0.55843264]
[1772726017074,0.55411779,2088.0,2086.4,0.55843264]
[1772726017579,0.55411779,2087.8,2086.4,0.55843264]
[1772726017974,0.55411779,2087.5,2086.4,0.55843264]
[1772726018380,0.00530851,2087.8,2086.6,0.55843264]
[1772726018770,0.55411779,2088.7,2087.1,0.55843264]
[1772726018977,0.55411779,2088.5,2087.3,0.55843264]
[1772726019278,0.55411779,2089.1,2087.5,0.55843264]
[1772726019780,0.55804767,2089.1,2087.5,0.56398489]
[1772726020280,0.55411779,2088.9,2087.5,0.56398489]
[1772726020775,0.55411779,2088.5,2087.5,0.56398489]
[1772726020976,0.55411779,2088.5,2087.1,0.55843264]
[1772726021377,0.55411779,2088.1,2087.1,0.55843264]
[1772726022379,0.55411779,2087.9,2087.1,0.55843264]
[1772726022680,0.55411779,2088.5,2087.1,0.55843264]
[1772726022982,0.55411779,2088.3,2087.1,0.55843264]
[1772726023183,0.55411779,2088.3,2087.1,0.56264431]
[1772726023986,0.55411779,2088.9,2087.1,0.56264431]
[1772726024181,0.55411779,2088.6,2087.1,0.56264431]
[1772726024681,0.55411779,2088.4,2087.1,0.56264431]
[1772726025381,0.55985406,2088.4,2087.1,0.56264431]
[1772726025582,0.55411779,2088.4,2087.1,0.56264431]
[1772726025984,0.55411779,2088.2,2087.1,0.56264431]
[1772726027784,0.55411779,2088.0,2087.1,0.56264431]
[1772726028187,0.55411779,2088.8,2087.1,0.56264431]
[1772726028388,0.55411779,2088.5,2087.1,0.56264431]